bitfinex/quotes_ETHUSD_20220119
["timestamp","ask_amount","ask_price","bid_price","bid_amount"]
[1642597655993,0.3,3131.7,3131.0,0.00682108]
[1642597656455,0.79855,3131.6,3131.2,1.22044829]
[1642597656656,0.92625,3131.6,3131.2,1.22044829]
[1642597656855,0.92625,3131.6,3131.3,0.00511581]
[1642597656856,1.22625,3131.6,3131.3,0.00511581]
[1642597657056,0.79855,3131.6,3131.3,0.00511581]
[1642597657559,0.79855,3131.6,3131.3,0.80356581]
[1642597657856,0.79855,3131.6,3131.4,0.00454739]
[1642597658056,0.79836,3131.9,3131.4,1.60128739]
[1642597658460,0.79836,3131.9,3131.5,0.00397896]
[1642597658654,0.79836,3131.9,3131.6,0.79837]
[1642597658857,0.79836,3131.9,3131.7,1.17080593]
[1642597659157,0.79836,3131.9,3131.8,0.00227369]
[1642597661183,2.3950927,3132.1,3131.8,0.00227369]
[1642597661184,1.59674,3132.1,3131.8,0.00227369]
[1642597661386,1.59674,3132.1,3131.9,2.98986769]
[1642597661586,0.6,3132.0,3131.8,0.00227369]
[1642597661788,0.6,3132.0,3131.1,0.1277]
[1642597661987,3.07014221,3132.1,3131.0,0.12]
[1642597661988,3.22465785,3131.9,3131.0,0.12]
[1642597662189,3.89547785,3131.9,3131.2,0.00568423]
[1642597662388,0.79855,3131.7,3131.2,0.00568423]
[1642597662586,3.38568606,3131.6,3130.9,1.80645629]
[1642597662786,3.38568606,3131.6,3130.9,1.79906678]
[1642597662987,3.38568606,3131.6,3131.0,0.00682108]
[1642597663390,4.18426606,3131.6,3131.0,0.00682108]
[1642597663640,0.79866,3131.5,3131.0,0.00682108]
[1642597663841,3.06724599,3131.4,3131.0,0.00682108]
[1642597664041,3.66724599,3131.4,3130.8,0.00795793]
[1642597664242,1.59747,3131.3,3130.6,0.00909478]
[1642597664543,0.7277,3131.2,3130.4,0.01023162]
[1642597664744,1.5975307,3131.0,3130.4,0.01023162]
[1642597664947,0.3,3130.8,3130.4,0.01023162]
[1642597665142,0.3,3130.8,3130.2,0.01136847]
[1642597665143,1.72548,3130.7,3130.2,0.01136847]
[1642597665342,1.72548,3130.7,3129.8,0.01364216]
[1642597665544,2.02548,3130.7,3129.8,0.01364216]
[1642597665744,0.79884,3130.5,3129.8,0.01364216]
[1642597665943,1.22654,3130.5,3130.0,1.35344323]
[1642597666148,0.79884,3130.5,3130.0,1.30344323]
[1642597666342,0.79884,3130.5,3130.1,0.01193689]
[1642597666343,1.5976894,3130.5,3130.1,0.01193689]
[1642597667143,1.5976894,3130.5,3130.1,0.81070689]
[1642597667398,0.79884,3130.5,3130.1,0.81070689]
[1642597667587,0.79862,3130.8,3130.2,0.01136847]
[1642597667786,0.79862,3130.8,3130.7,1.21107213]
[1642597668184,0.79862,3130.8,3130.7,1.21959848]
[1642597669588,0.79862,3130.8,3130.7,0.00852635]
[1642597669787,1.09862,3130.8,3130.7,0.00852635]
[1642597670187,1.09862,3130.8,3130.4,0.01023162]
[1642597670389,1.09871,3130.7,3130.3,0.01080005]
[1642597670589,0.7987701,3130.6,3130.3,0.01080005]
[1642597670990,0.7987701,3130.6,3130.0,0.01250532]
[1642597671238,0.9264701,3130.6,3130.0,0.01250532]
[1642597671541,0.9264701,3130.6,3129.8,0.92653]
[1642597671542,1.89761,3130.5,3129.9,0.01307374]
[1642597671736,1.89761,3130.5,3130.1,2.34029074]
[1642597672138,1.89761,3130.5,3130.2,0.01136847]
[1642597672341,0.01224505,3130.3,3129.8,0.1277]
[1642597672546,0.1277,3130.2,3129.2,0.12]
[1642597672742,0.1277,3130.2,3128.8,1.61496028]
[1642597672743,0.1603,3130.1,3129.9,0.00170527]
[1642597672944,1.49722222,3130.4,3129.9,0.00170527]
[1642597672945,0.12883685,3130.4,3129.9,0.00170527]
[1642597673144,0.12883685,3130.4,3129.1,4.44520042]
[1642597673346,0.00113685,3130.4,3130.1,1.79613862]
[1642597673542,1.59766,3130.3,3130.1,1.79613862]
[1642597673942,1.89766,3130.3,3130.1,1.79613862]
[1642597674989,0.79882,3130.3,3130.1,1.79613862]
[1642597677392,0.09882,3130.3,3130.1,1.79613862]
[1642597677793,0.09882,3130.3,3129.9,1.37109832]
[1642597677994,0.7989,3130.2,3129.6,1.59759]
[1642597678209,0.7989,3130.2,3130.0,0.00113685]
[1642597678394,0.1277,3130.1,3129.7,0.00284212]
[1642597678635,0.79898,3130.0,3129.8,0.00227369]
[1642597678836,0.1277,3129.9,3129.5,2.07201395]
[1642597679138,0.79898,3130.0,3129.6,1.27253553]
[1642597679139,1.59789,3130.0,3129.6,1.27253553]
[1642597679341,1.59789,3130.0,3129.6,0.00341054]
[1642597679537,1.59789,3130.0,3129.7,0.00284212]
[1642597679538,0.4278,3129.9,3129.7,0.00284212]
[1642597679737,0.79904,3129.8,3129.3,1.2080639]
[1642597679938,0.1278,3129.7,3129.4,1.20749548]
[1642597680143,0.1278,3129.7,3129.5,1.20294809]
[1642597680342,0.1278,3129.7,3129.5,0.00397896]
[1642597680541,0.1278,3129.7,3129.6,0.00341054]
[1642597680742,0.1278,3129.7,3129.5,0.00397896]
[1642597680942,0.1278,3129.9,3129.5,0.00397896]
[1642597681142,0.1278,3129.9,3129.6,1.20267934]
[1642597681541,0.1278,3129.9,3129.7,0.00284212]
[1642597681945,0.1278,3129.9,3129.5,1.20684423]
[1642597682142,0.92681,3129.9,3129.6,0.00341054]
[1642597682594,2.5249037,3129.9,3129.5,1.20644651]
[1642597682795,2.5249037,3129.9,3129.6,0.00341054]
[1642597683196,2.5249037,3129.9,3129.5,0.00397896]
[1642597683197,3.1961437,3129.9,3129.5,0.00397896]
[1642597683396,0.1278,3129.8,3129.5,0.00397896]
[1642597683598,2.51680021,3129.8,3129.5,0.00397896]
[1642597683795,0.1278,3129.8,3129.5,0.00397896]
[1642597684194,0.35461,3129.9,3129.5,0.00397896]
[1642597684394,0.22681,3129.9,3129.7,2.04435273]
[1642597684598,0.22681,3129.9,3129.5,0.00397896]
[1642597684795,0.22681,3129.9,3129.8,0.00227369]
[1642597684997,0.52681,3129.9,3129.5,0.00397896]
[1642597685401,0.4603,3129.8,3129.5,0.00397896]
[1642597685597,18.71,3129.7,3129.3,0.00511581]
[1642597685897,0.79904,3129.7,3129.2,0.00568423]
[1642597686141,1.09904,3129.7,3129.2,0.00568423]
[1642597686541,1.09904,3129.7,3129.5,1.341301]
[1642597686743,6.62775,3130.2,3129.5,2.140221]
[1642597686945,0.79894,3129.9,3129.6,1.20644738]
[1642597687147,5.47145,3130.2,3129.6,1.20644738]
[1642597687148,1.59795,3130.2,3129.6,1.20644738]
[1642597687342,1.59795,3130.2,3129.7,0.00284212]
[1642597687543,1.59795,3130.2,3130.0,1.43442991]
[1642597688346,1.59795,3130.2,3129.9,0.7]
[1642597688644,0.7989105,3130.1,3130.0,0.00113685]
[1642597691912,5.55,3130.0,3129.2,0.1277]
[1642597692109,5.55,3130.0,3129.1,2.07358068]
[1642597692110,0.7991426,3129.7,3129.1,2.07358068]
[1642597692413,0.1278,3129.6,3129.3,0.00397896]
[1642597692610,22.89368062,3129.7,3129.3,0.00397896]
[1642597693009,22.89368062,3129.7,3128.7,0.461]
[1642597693010,22.89368062,3129.7,3128.8,0.00682108]
[1642597693211,22.89368062,3129.7,3128.9,1.20734966]
[1642597693212,0.79918,3129.6,3128.9,1.20734966]
[1642597693410,1.59836,3129.6,3128.9,1.20734966]
[1642597693634,0.7991653,3129.5,3129.1,1.44097944]
[1642597693933,0.7991653,3129.5,3128.7,3.71898906]
[1642597693934,0.7991653,3129.5,3129.2,1.21189704]
[1642597694136,0.1278,3129.4,3129.2,0.00454738]
[1642597694340,1.5982953,3129.5,3129.2,0.00454738]
[1642597694537,0.79913,3129.5,3128.8,0.00682108]
[1642597694739,0.79913,3129.5,3128.9,1.20730013]
[1642597694740,0.7991084,3129.3,3128.9,1.20730013]
[1642597694942,0.7991084,3129.3,3129.2,1.24710525]
[1642597695140,0.7991084,3129.3,3129.2,2.45440538]
[1642597695340,0.7991084,3129.3,3129.2,2.45895276]
[1642597695539,0.1278,3129.7,3129.2,2.45895276]
[1642597695841,0.1278,3129.8,3129.2,1.25165263]
[1642597696038,0.1278,3130.0,3129.2,1.25165263]
[1642597696639,0.92679,3130.0,3129.2,1.25165263]
[1642597697041,0.7989991,3129.8,3129.2,1.25165263]
[1642597698632,0.7990116,3129.7,3129.2,1.25165263]
[1642597699032,0.1278,3130.0,3129.3,2.00734524]
[1642597699233,0.1278,3130.0,3129.3,0.79897]
[1642597699433,0.1278,3130.0,3129.4,0.00341054]
[1642597699631,0.7989688,3129.8,3129.7,3.44241952]
[1642597699834,0.1278,3130.0,3129.7,3.44241952]
[1642597700037,0.1278,3130.0,3129.7,3.44412479]
[1642597700233,0.1278,3130.1,3129.8,0.00113684]
[1642597700831,1.5978494,3130.0,3129.5,0.00284211]
[1642597701032,0.7989194,3130.0,3129.1,1.21401941]
[1642597701243,5.52328893,3129.9,3129.2,1.21345098]
[1642597701447,0.3,3129.8,3129.2,0.00454738]
[1642597701641,0.1278,3129.7,3129.2,0.00454738]
[1642597701841,0.1278,3129.7,3129.0,3.9504]
[1642597701842,0.7278,3129.7,3129.1,0.00511581]
[1642597702045,0.7991132,3129.6,3129.1,0.00511581]
[1642597702342,0.92692,3129.5,3129.0,0.00568423]
[1642597702551,0.79912,3129.5,3129.1,1.20945482]
[1642597702942,0.79912,3129.5,3129.2,0.00454738]
[1642597703143,0.79912,3129.5,3129.3,1.20111176]
[1642597703543,0.79912,3129.5,3129.4,0.00341054]
[1642597703745,0.79912,3129.5,3129.4,1.2045223]
[1642597704045,0.79912,3129.5,3129.4,0.00341054]
[1642597704445,0.09912,3129.5,3129.1,1.21507928]
[1642597704645,0.09912,3129.5,3129.2,1.21451085]
[1642597704885,0.09912,3129.5,3129.3,1.20996347]
[1642597705091,0.09912,3129.5,3129.4,1.20996347]
[1642597705287,0.09912,3129.5,3129.4,1.21337401]
[1642597705485,0.09912,3129.5,3129.4,0.00341054]
[1642597705888,0.09912,3129.5,3129.2,0.00454738]
[1642597706088,0.09912,3129.5,3129.3,1.20996347]
[1642597706291,0.09912,3129.5,3129.4,1.20996347]
[1642597706492,0.09912,3129.5,3129.4,0.00341054]
[1642597706896,0.09912,3129.5,3129.3,1.20996347]
[1642597707091,0.9269132,3129.6,3129.4,1.20996347]
[1642597707293,0.9269132,3129.6,3129.5,1.20996347]
[1642597707492,0.9269132,3129.6,3129.5,0.00284211]
[1642597707493,4.4769132,3129.6,3129.5,0.00284211]
[1642597707893,3.6778,3129.6,3129.0,1.21627143]
[1642597708095,3.6778,3129.6,3129.1,1.21570301]
[1642597708392,3.6778,3129.6,3129.5,0.7]
[1642597708654,12.07746404,3129.6,3129.5,0.7]
[1642597708836,6.5,3129.5,3128.6,0.1278]
[1642597709037,0.79926,3129.2,3128.7,1.20567371]
[1642597709238,0.1278,3129.1,3128.7,1.20567371]
[1642597709641,0.92706,3129.1,3128.7,1.20567371]
[1642597710039,3.3248249,3129.1,3128.7,1.20567371]
[1642597710437,2.5255649,3129.1,3128.8,1.20567371]
[1642597710638,2.5255649,3129.1,3128.9,1.20567371]
[1642597710839,0.79923,3129.0,3128.9,0.00341054]
[1642597711038,2.5255649,3129.1,3128.9,0.00341054]
[1642597711241,2.5255649,3129.1,3128.4,1.19428229]
[1642597711242,2.5255649,3129.1,3128.5,0.00568424]
[1642597711441,0.79924,3129.0,3128.5,0.00568424]
[1642597711939,3.3247549,3129.1,3128.9,1.52346449]
[1642597712141,3.1969549,3129.1,3128.9,1.52346449]
[1642597712394,1.598445,3129.1,3129.0,0.00284212]
[1642597714097,1.598445,3129.1,3128.6,0.00511581]
[1642597714499,0.799255,3129.1,3128.6,0.00511581]
[1642597714699,0.799255,3129.1,3128.6,1.28713579]
[1642597715098,0.799255,3129.1,3128.7,0.00454739]
[1642597715503,0.1278,3129.0,3128.7,0.00454739]
[1642597715698,0.1278,3129.0,3128.6,0.00511581]
[1642597715898,0.7992623,3128.9,3128.4,0.00625266]
[1642597717743,1.5985323,3128.9,3128.4,0.00625266]
[1642597718541,0.7992623,3128.9,3128.4,1.62121294]
[1642597718743,0.7992623,3128.9,3128.4,0.00625266]
[1642597718941,0.7992623,3128.9,3128.5,0.00568424]
[1642597719142,0.7992623,3128.9,3128.4,0.00625266]
[1642597719441,0.7992623,3128.9,3128.4,1.62121294]
[1642597719890,0.7992623,3128.9,3128.5,0.00568424]
[1642597721096,0.7992623,3128.9,3128.4,0.00625266]
[1642597722100,0.79929,3128.8,3128.4,0.00625266]
[1642597722500,0.79929,3128.8,3128.3,1.62178137]
[1642597722699,0.7992843,3128.7,3128.3,1.62178137]
[1642597722899,0.7992843,3128.7,3128.4,0.00625266]
[1642597723499,0.7992843,3128.7,3128.3,0.00682109]
[1642597723740,0.1278,3128.6,3128.3,0.00682109]
[1642597724140,1.5986343,3128.7,3128.3,0.00682109]
[1642597724340,0.7992843,3128.7,3128.2,1.62234979]
[1642597724545,0.7992843,3128.7,3128.3,0.00682109]
[1642597724945,0.1278,3128.8,3128.6,1.49073999]
[1642597725150,0.1278,3129.0,3128.7,7.05321056]
[1642597725347,0.1278,3129.2,3128.7,7.05775795]
[1642597725547,4.1175,3129.7,3129.1,1.44850109]
[1642597725548,0.1278,3129.5,3129.1,1.44850109]
[1642597725748,1.50509568,3129.4,3129.1,1.44850109]
[1642597725950,0.1278,3129.3,3129.2,1.18740242]
[1642597726146,0.1278,3129.3,3129.2,3.18596724]
[1642597726345,0.1603,3129.7,3129.2,3.18596724]
[1642597726346,0.1278,3129.6,3129.2,3.18596724]
[1642597726747,0.7990986,3129.4,3129.3,1.186834]
[1642597726946,0.9268986,3129.4,3129.3,1.186834]
[1642597727145,1.2268986,3129.4,3129.3,1.186834]
[1642597727795,2.73276049,3129.4,3129.3,1.186834]
[1642597728195,2.73276049,3129.4,3129.3,0.00113685]
[1642597728498,2.73276049,3129.4,3129.3,1.186834]
[1642597728698,2.73276049,3129.4,3129.3,0.00113685]
[1642597729096,2.73276049,3129.4,3129.0,0.00284212]
[1642597729298,1.63366189,3129.3,3129.1,2.27178459]
[1642597729497,0.1278,3129.3,3129.2,1.18569715]
[1642597729697,0.1278,3129.3,3129.2,1.18740242]
[1642597730097,1.63342824,3129.3,3129.2,1.18740242]
[1642597730497,1.50554967,3129.3,3129.2,1.18740242]
[1642597731362,0.0990986,3129.4,3129.2,1.18740242]
[1642597731765,0.0990986,3129.4,3129.3,0.00113685]
[1642597731964,1.60473939,3129.4,3129.3,0.00113685]
[1642597734273,1.60473939,3129.4,3129.3,2.55113685]
[1642597734473,1.60473939,3129.4,3129.3,3.736834]
[1642597734474,1.50564079,3129.4,3129.3,3.736834]
[1642597734885,1.50564079,3129.5,3129.3,3.736834]
[1642597735087,0.7990466,3129.6,3129.3,2.55113685]
[1642597735286,1.5072991,3129.5,3129.3,2.55113685]
[1642597735688,1.5072991,3129.5,3129.3,0.00113685]
[1642597736088,1.5072991,3129.5,3129.2,0.00170527]
[1642597737089,1.5072991,3129.4,3129.2,0.00170527]
[1642597737289,1.5072991,3129.3,3129.2,0.00170527]
[1642597737493,0.3,3129.7,3129.2,0.00170527]
[1642597737694,1.50953287,3129.6,3129.2,0.00170527]
[1642597738294,2.30863207,3129.6,3129.2,0.00170527]
[1642597738495,1.50953287,3129.5,3129.2,0.00170527]
[1642597739739,1.63733287,3129.5,3129.2,0.00170527]
[1642597739940,1.50953287,3129.4,3129.2,0.00170527]
[1642597741544,0.7990992,3129.6,3129.2,0.00170527]
[1642597741545,1.50953287,3129.3,3129.2,0.00170527]
[1642597742041,1.50953287,3129.5,3129.2,0.00170527]
[1642597742492,1.50953287,3129.4,3129.2,0.00170527]
[1642597742693,0.1278,3129.7,3129.2,0.00170527]
[1642597742694,1.50953287,3129.3,3129.2,0.00170527]
[1642597743090,1.50953287,3129.6,3129.2,0.00170527]
[1642597743291,0.1278,3129.7,3129.2,1.2125588]
[1642597743292,1.50953287,3129.5,3129.2,1.2125588]
[1642597743492,1.50953287,3129.4,3129.2,1.2125588]
[1642597743691,0.7991033,3129.6,3129.3,0.00113685]
[1642597744290,0.1278,3129.7,3129.3,0.00113685]
[1642597745094,0.9268779,3129.7,3129.3,0.00113685]
[1642597745697,0.00170527,3129.8,3129.3,0.00113685]
[1642597745901,0.00170527,3129.8,3129.3,0.30113685]
[1642597746140,0.00170527,3129.8,3129.4,2.93814858]
[1642597746340,0.00170527,3129.8,3129.5,0.461]
[1642597746745,0.00170527,3129.8,3129.6,0.1278]
[1642597746941,0.00170527,3129.8,3129.7,5.961]
[1642597747542,0.00170527,3129.8,3129.7,7.09712575]
[1642597748244,0.00170527,3129.8,3129.7,9.86495186]
[1642597749747,0.1603,3130.9,3129.8,6.5017]
[1642597750003,0.12598672,3133.1,3129.8,6.5017]
[1642597750004,7.52642819,3133.5,3130.0,6.5]
[1642597750203,7.84370862,3133.6,3131.5,0.01261211]
[1642597750204,1.62322575,3132.2,3131.5,0.01261211]
[1642597750507,11.61380862,3133.6,3133.4,5.758]
[1642597750508,1.59667,3133.6,3133.4,5.758]
[1642597750719,1.59667,3133.6,3133.5,2.07221231]
[1642597750720,0.0419263,3133.6,3133.5,2.07221231]
[1642597750924,5.07327663,3135.4,3133.7,6.5]
[1642597751098,0.65054515,3135.9,3133.8,9.46991858]
[1642597751299,0.65054515,3135.9,3135.8,5.758]
[1642597751300,2.80831683,3135.9,3135.8,5.758]
[1642597751503,1.39739009,3137.1,3135.9,0.99709356]
[1642597751504,1.22041505,3136.4,3135.9,0.99709356]
[1642597751701,2.66241028,3137.3,3135.9,0.99709356]
[1642597751702,1.23369158,3136.8,3136.0,6.55]
[1642597751913,8.29368553,3138.1,3136.6,0.01296759]
[1642597752101,0.03581068,3136.8,3136.7,12.46757]
[1642597752299,2.5353299,3138.2,3136.7,12.46757]
[1642597752300,2.65661218,3141.2,3136.9,6.55]
[1642597752504,9.15099339,3139.9,3138.4,0.01206402]
[1642597752708,1.39739009,3140.5,3139.4,0.01234462]
[1642597752709,18.71,3139.8,3139.4,0.01234462]
[1642597752902,18.71,3139.8,3138.5,0.1274]
[1642597752903,0.1274,3139.8,3139.2,0.45005858]
[1642597753100,0.1274,3139.8,3138.9,0.01252878]
[1642597753301,1.35794825,3139.7,3139.1,0.3344]
[1642597753653,0.14171586,3139.6,3139.1,0.3344]
[1642597754049,0.01534743,3139.5,3139.1,0.3344]
[1642597754351,0.01477901,3139.4,3138.2,0.1274]
[1642597754553,0.1258,3139.6,3138.2,0.1274]
[1642597754554,0.1459996,3139.6,3138.3,6.55]
[1642597754749,0.13819997,3140.4,3138.6,0.01260442]
[1642597754955,0.461,3141.2,3138.7,6.55]
[1642597755151,0.01410984,3142.5,3138.7,6.55]
[1642597755152,0.00284212,3139.9,3139.5,0.01290843]
[1642597755353,0.00284212,3139.9,3138.8,0.01616884]
[1642597755354,0.00284212,3139.9,3138.9,0.15957]
[1642597755552,0.00227369,3139.8,3138.8,0.00341054]
[1642597755752,0.00227369,3139.8,3139.2,0.01265023]
[1642597755953,0.00170527,3139.7,3139.1,0.1274]
[1642597756256,1.59312,3141.5,3139.2,0.00113685]
[1642597756257,1.41954491,3139.6,3139.2,0.00113685]
[1642597756454,1.41954491,3139.6,3139.3,0.1274]
[1642597756657,1.48167814,3139.5,3139.0,0.00227369]
[1642597757167,6.55,3139.3,3138.4,0.1272]
[1642597757394,6.55,3139.3,3137.5,0.0125044]
[1642597757395,1.56198295,3139.1,3137.5,0.0125044]
[1642597757602,1.51555431,3137.6,3137.1,2.81034858]
[1642597757801,0.60284212,3139.0,3137.6,0.00511581]
[1642597758000,0.30284212,3139.0,3137.6,0.00511581]
[1642597758198,0.46327369,3138.9,3137.3,0.00682108]
[1642597758399,0.76327369,3138.9,3137.4,0.00625266]
[1642597758599,1.53826732,3137.5,3137.3,0.00682108]
[1642597758800,1.12276421,3137.4,3137.2,0.01208575]
[1642597758999,1.53826732,3137.5,3137.0,0.1274]
[1642597759199,0.461,3137.8,3137.0,0.1274]
[1642597759401,0.00170527,3138.8,3137.1,0.02031431]
[1642597759599,0.461,3138.2,3137.1,0.02031431]
[1642597759803,0.461,3138.2,3137.2,0.00738951]
[1642597760003,0.00113684,3138.7,3137.2,0.00738951]
[1642597760204,0.00113684,3138.7,3137.8,0.01235857]
[1642597760402,0.00113684,3138.7,3137.9,0.74797]
[1642597760601,0.00113684,3138.7,3138.0,2.81034858]
[1642597760803,0.00113684,3138.7,3138.1,0.28697]
[1642597761003,3.684e-05,3138.7,3138.6,6.56266444]
[1642597761242,3.684e-05,3138.7,3138.6,6.99006444]
[1642597761442,2.93774858,3140.3,3138.7,6.55]
[1642597761644,2.93774858,3140.3,3139.4,0.01287826]
[1642597761645,1.12024938,3140.0,3139.4,0.01287826]
[1642597761843,0.13649478,3140.3,3139.4,0.01287826]
[1642597762043,0.00909478,3140.3,3139.5,0.1273]
[1642597762241,0.461,3141.3,3139.5,0.0773]
[1642597762242,0.00852636,3140.2,3139.5,0.0773]
[1642597762450,0.00852636,3140.2,3139.6,0.136]
[1642597762451,0.1273,3140.1,3139.6,0.136]
[1642597762647,0.13525793,3140.1,3139.6,0.12]
[1642597762845,0.00738951,3140.0,3139.5,3.38880314]
[1642597763046,1.09227984,3139.8,3139.5,3.38720314]
[1642597763248,0.00682109,3139.9,3139.5,0.124]
[1642597763446,0.00568424,3139.7,3139.5,0.124]
[1642597763747,0.00511582,3139.6,3139.5,3.57066752]
[1642597763944,0.00511582,3139.6,3139.5,5.1328]
[1642597764145,0.00511582,3139.6,3139.5,0.14]
[1642597764346,0.00511582,3139.6,3139.5,0.1312]
[1642597764545,0.00511582,3139.6,3139.5,1.4258126]
[1642597764748,0.00511582,3139.6,3139.5,11.9046074]
[1642597765702,0.00511582,3139.6,3139.5,12.0358074]
[1642597765903,1.582e-05,3139.6,3139.5,15.46634262]
[1642597766105,0.1274,3141.3,3139.6,6.55]
[1642597766305,1.24291749,3141.8,3140.3,1.31604027]
[1642597766505,0.00682108,3140.8,3140.4,3.4746398]
[1642597766704,2.108e-05,3140.8,3140.4,4.92167565]
[1642597766905,0.01410984,3142.5,3140.7,1.31630824]
[1642597767104,0.01410984,3142.5,3141.7,1.31623909]
[1642597767305,0.0073895,3142.1,3141.7,1.31623909]
[1642597767512,1.52488178,3141.8,3141.7,1.31623909]
[1642597767807,1.16477093,3142.2,3142.0,3.06511098]
[1642597768005,0.01410984,3142.5,3142.0,5.31388804]
[1642597768206,0.01410984,3142.5,3142.0,5.26388804]
[1642597768407,0.00227369,3142.4,3142.0,5.26388804]
[1642597768682,0.00227369,3142.4,3142.1,0.1256]
[1642597768868,0.00170527,3142.3,3142.1,0.124]
[1642597769070,0.00170527,3142.3,3142.1,3.18544755]
[1642597769269,0.01410984,3142.5,3142.1,4.56657938]
[1642597769270,0.00113685,3142.2,3142.1,4.56657938]
[1642597769473,0.06562,3143.2,3142.4,6.55]
[1642597769672,0.02912808,3143.5,3142.5,3.8066345]
[1642597769869,0.02912808,3143.5,3142.5,6.80381249]
[1642597770074,1.12183752,3143.4,3142.6,1.59375788]
[1642597770271,1.12183752,3143.4,3142.8,1.59368873]
[1642597770470,3.31054437,3143.3,3142.9,1.25281534]
[1642597771071,3.77154437,3143.3,3142.9,1.25281534]
[1642597771473,3.31054437,3143.3,3142.9,1.25281534]
[1642597771675,0.02912808,3143.5,3143.2,0.01269002]
[1642597772071,0.02,3145.0,3142.9,0.06562]
[1642597772072,0.461,3144.2,3143.7,0.04900569]
[1642597772601,0.461,3144.6,3143.7,0.04900569]
[1642597772797,1.15635595,3144.1,3143.7,0.04900569]
[1642597773197,0.00397897,3144.0,3143.7,0.04900569]
[1642597773595,0.00341054,3143.9,3143.7,0.04900569]
[1642597773996,2.26306543,3144.1,3143.7,0.04900569]
[1642597773997,0.00284212,3143.8,3143.7,0.04900569]
[1642597774200,0.00284212,3143.8,3143.0,5.06478495]
[1642597774201,6.55,3143.7,3143.0,1.59355045]
[1642597774401,6.55,3143.7,3142.7,0.1232]
[1642597774402,4.86951739,3143.6,3142.7,0.1232]
[1642597774596,1.37518489,3143.5,3143.1,0.00113684]
[1642597774800,1.30113685,3143.5,3142.8,0.00284211]
[1642597774998,0.461,3143.4,3142.8,0.72293248]
[1642597775203,1.50675568,3143.3,3142.8,0.72293248]
[1642597775399,0.461,3143.2,3142.9,0.00227369]
[1642597775601,1.38465292,3143.1,3141.8,0.1272]
[1642597775803,3.8066345,3143.0,3141.8,0.1272]
[1642597776000,6.55,3142.8,3142.0,0.00455837]
[1642597776247,1.87006338,3142.7,3142.0,0.00455837]
[1642597776547,2.49621003,3142.6,3142.0,0.00455837]
[1642597776747,0.461,3142.5,3142.0,0.00455837]
[1642597776952,2.52466987,3142.1,3142.0,0.00455837]
[1642597777151,2.98566987,3142.1,3142.0,0.00455837]
[1642597777350,2.52466987,3142.1,3142.0,0.00455837]
[1642597777550,2.90666987,3142.1,3142.0,0.00455837]
[1642597777853,3.3456345,3143.1,3143.0,2.56843415]
[1642597778149,9.44904479,3142.1,3142.0,0.00683206]
[1642597778551,13.28790629,3142.1,3142.0,0.00683206]
[1642597778950,9.44904479,3142.1,3142.0,0.00683206]
[1642597779150,1.04793083,3142.1,3142.0,0.00683206]
[1642597780404,2.13442312,3142.1,3142.0,0.00683206]
[1642597781600,6.54530934,3142.1,3142.0,0.00683206]
[1642597781801,11.79530934,3142.1,3142.0,0.00683206]
[1642597782000,11.66888256,3142.1,3142.0,0.00683206]
[1642597782202,9.51645944,3142.1,3142.0,3.206e-05]
[1642597782401,9.51645944,3142.1,3139.9,0.1273]
[1642597782402,6.6249954,3142.0,3139.9,0.1273]
[1642597782604,9.51645944,3142.1,3139.9,0.13923689]
[1642597782605,2.06438281,3141.9,3139.9,0.13923689]
[1642597782805,1.17833,3141.8,3140.0,0.1232]
[1642597783010,1.17833,3141.8,3139.9,0.01193689]
[1642597783011,0.382,3141.7,3139.9,0.01193689]
[1642597783304,1.36157365,3140.0,3139.8,3.63624238]
[1642597783509,1.36157365,3140.0,3139.8,0.01250532]
[1642597784145,1.10922628,3140.3,3139.8,0.01250532]
[1642597784344,0.382,3140.4,3139.8,0.01250532]
[1642597784549,1.2354,3142.3,3139.9,0.28687]
[1642597784550,0.382,3141.5,3139.9,0.28687]
[1642597784750,0.00341054,3143.0,3141.5,6.55]
[1642597784947,0.00341054,3143.0,3142.9,0.01288974]
[1642597785147,6.3634,3143.0,3142.9,0.01288974]
[1642597785344,7.81300855,3143.0,3142.9,0.01288974]
[1642597785550,7.81300855,3143.0,3142.1,0.1397186]
[1642597785745,1.18430384,3142.5,3142.1,0.1397186]
[1642597785946,1.33479571,3142.3,3141.9,3.37403706]
[1642597786145,1.4763937,3142.8,3142.6,0.45594975]
[1642597786549,6.3634,3143.0,3142.6,0.45594975]
[1642597786745,6.3634,3143.0,3141.9,0.01212961]
[1642597786746,1.39945769,3142.9,3141.9,0.01212961]
[1642597786947,1.39945769,3142.9,3141.6,0.12147369]
[1642597786948,6.55,3142.8,3141.6,0.12147369]
[1642597787151,6.55,3142.8,3141.6,0.00227369]
[1642597787152,3.37403706,3142.7,3141.6,0.00227369]
[1642597787419,1.71916662,3142.6,3141.7,0.00170527]
[1642597787610,1.72257716,3142.6,3141.3,0.00397897]
[1642597787809,0.79628,3142.3,3141.0,0.00568424]
[1642597788012,0.79639,3141.8,3140.6,0.00795793]
[1642597788217,1.07184328,3142.0,3140.5,0.00852635]
[1642597788218,6.55,3141.9,3140.5,0.00852635]
[1642597788408,0.682,3141.7,3140.5,0.00852635]
[1642597788611,1.23278649,3140.6,3140.5,0.00852635]
[1642597789009,1.53278649,3140.6,3140.5,0.00852635]
[1642597789211,3.13360313,3140.6,3140.5,0.00852635]
[1642597789809,1.21881664,3140.6,3140.5,0.00852635]
[1642597790816,2.31411602,3140.6,3140.5,0.00852635]
[1642597791257,2.31411602,3140.6,3140.5,0.00741478]
[1642597792263,2.31411602,3140.6,3140.0,0.7]
[1642597792264,6.55,3140.5,3140.0,0.7]
[1642597792468,0.47117773,3140.4,3140.0,0.7]
[1642597792665,0.47117773,3140.4,3140.1,0.0022737]
[1642597792867,0.382,3140.4,3140.1,0.0022737]
[1642597793064,0.382,3140.4,3139.2,0.00738951]
[1642597793265,1.14573843,3139.4,3139.2,0.00738951]
[1642597793571,8.70943195,3140.3,3140.2,1.57855028]
[1642597793772,2.96275195,3140.3,3140.2,1.57855028]
[1642597793967,2.96275195,3140.3,3140.2,1.58025555]
[1642597794367,8.3371475,3140.3,3140.2,5.555e-05]
[1642597794670,0.79674,3140.0,3139.1,0.00625266]
[1642597794888,4.44928294,3140.0,3139.2,2.70937545]
[1642597795088,4.4347052,3140.0,3139.2,2.70937545]
[1642597795288,4.4347052,3140.0,3139.3,2.71449126]
[1642597795289,0.79674,3140.0,3139.3,2.71449126]
[1642597795489,2.58103229,3139.9,3139.4,2.70937545]
[1642597795689,2.58103229,3139.9,3139.4,2.71392284]
[1642597795889,2.58103229,3139.9,3139.5,2.71335442]